bitfinex/quotes_SOLUSD_20250102
["timestamp","ask_amount","ask_price","bid_price","bid_amount"]
[1735858943958,9.08985206,207.08,207.04,20.0]
[1735858944144,9.08985206,207.09,207.04,20.0]
[1735858944852,9.08985206,207.1,207.04,20.0]
[1735858945150,9.08985206,207.11,207.04,59.08985206]
[1735858945528,9.08985206,207.13,207.05,9.08985206]
[1735858945729,9.08985206,207.13,207.07,30.0]
[1735858945938,9.08985206,207.14,207.07,39.08985206]
[1735858947264,9.08985206,207.15,207.08,9.08985206]
[1735858947632,9.08985206,207.16,207.1,30.0]
[1735858948660,9.08985206,207.17,207.1,30.0]
[1735858949152,9.08985206,207.17,207.1,39.08985206]
[1735858949331,9.08985206,207.17,207.1,171.98985206]
[1735858950353,9.08985206,207.18,207.11,148.61225206]
[1735858950550,9.08985206,207.19,207.11,148.61225206]
[1735858950751,9.08985206,207.19,207.13,30.0]
[1735858952553,9.08985206,207.19,207.13,162.9]
[1735858952755,9.08985206,207.21,207.13,171.98985206]
[1735858952964,9.08985206,207.23,207.16,30.0]
[1735858953637,9.08985206,207.22,207.16,30.0]
[1735858954056,9.08985206,207.21,207.16,30.0]
[1735858954736,9.08985206,207.21,207.14,10.60175206]
[1735858954931,9.08985206,207.17,207.11,139.5224]
[1735858955243,9.08985206,207.15,207.11,6.6224]
[1735858955639,9.08985206,207.16,207.11,6.6224]
[1735858956040,9.08985206,207.15,207.11,6.6224]
[1735858956340,9.08985206,207.15,207.09,1.5526]
[1735858956670,9.08985206,207.1,207.07,30.0]
[1735858956969,9.08985206,207.1,207.06,6.1326]
[1735858957956,12.0679,207.17,207.08,30.0]
[1735858958146,9.08985206,207.14,207.08,30.0]
[1735858958552,9.08985206,207.16,207.09,9.08985206]
[1735858958739,9.08985206,207.18,207.12,30.0]
[1735858959856,9.08985206,207.16,207.12,20.0]
[1735858960259,9.08985206,207.14,207.07,141.98985206]
[1735858960456,9.08985206,207.13,207.07,132.9]
[1735858960677,9.08985206,207.11,207.06,36.1326]
[1735858960979,0.25098,207.18,207.05,1.6504]
[1735858961181,0.25098,207.18,207.05,134.5504]
[1735858961506,1.6549,207.19,207.07,9.08985206]
[1735858961644,1.6549,207.19,207.09,20.0]
[1735858961844,9.08985206,207.15,207.09,20.0]
[1735858962272,14.00757683,207.15,207.09,20.0]
[1735858963971,14.00757683,207.14,207.09,20.0]
[1735858964474,14.00757683,207.12,207.09,20.0]
[1735858964771,14.00757683,207.1,207.05,1.6504]
[1735858965457,14.00757683,207.1,207.06,20.0]
[1735858967079,14.00757683,207.11,207.06,20.0]
[1735858967278,12.0687,207.15,207.06,50.0]
[1735858967279,14.00757683,207.12,207.06,50.0]
[1735858967582,14.00757683,207.13,207.06,50.0]
[1735858968280,14.00757683,207.15,207.06,196.90757683]
[1735858972185,13.7214,207.19,207.06,196.90757683]
[1735858972186,14.00757683,207.13,207.06,196.90757683]
[1735858972372,14.00757683,207.11,207.06,182.9]
[1735858972687,14.00757683,207.11,207.06,152.9]
[1735858973483,14.00757683,207.11,207.07,1.20897288]
[1735858973784,14.00757683,207.09,207.07,1.20897288]
[1735858974086,14.00757683,207.08,207.07,1.20897288]
[1735858974268,14.00757683,207.08,207.01,138.9059]
[1735858974460,14.00757683,207.07,207.01,138.9059]
[1735858974866,14.00757683,207.07,207.02,1.20918611]
[1735858975185,14.00757683,207.09,207.02,15.21676294]
[1735858975365,14.00757683,207.09,207.02,1.20918611]
[1735858975562,14.00757683,207.09,207.03,1.20918611]
[1735858975973,14.00757683,207.08,207.03,1.20918611]
[1735858976494,14.00757683,207.08,207.04,1.20918611]
[1735858976690,14.00757683,207.07,207.04,1.20918611]
[1735858976982,14.00757683,207.07,207.01,138.9059]
[1735858977488,14.00757683,207.06,207.01,138.9059]
[1735858977690,14.00757683,207.06,207.02,1.20922125]
[1735858977986,14.00757683,207.04,207.02,1.20922125]
[1735858978188,14.00757683,207.03,207.02,1.20922125]
[1735858978966,14.00757683,207.04,207.02,1.20922125]
[1735858979480,14.00757683,207.04,206.98,1.6474]
[1735858979889,14.00757683,207.04,206.99,1.20936046]
[1735858980587,14.00757683,207.04,207.0,1.20936046]
[1735858980991,14.00757683,207.03,207.0,1.20936046]
[1735858981191,14.00757683,207.02,207.0,1.20936046]
[1735858981392,14.00757683,207.03,207.01,1.20936046]
[1735858981992,14.00757683,207.04,206.99,1.20936046]
[1735858982392,8.97407817,207.02,206.99,1.20936046]
[1735858982569,8.97407817,207.03,207.0,1.20936046]
[1735858982968,8.97407817,207.04,207.0,1.20936046]
[1735858983178,8.97407817,207.04,206.98,1.6474]
[1735858983670,8.97407817,207.04,206.99,1.20936309]
[1735858983870,8.97407817,207.05,206.99,1.20936309]
[1735858984092,8.97407817,207.05,207.0,31.20936309]
[1735858984304,8.97407817,207.06,207.0,31.20936309]
[1735858984890,8.97407817,207.06,207.01,1.20936309]
[1735858985492,8.97407817,207.05,207.01,1.20936309]
[1735858985699,8.97407817,207.04,207.01,1.20936309]
[1735858985905,8.97407817,207.04,207.0,30.0]
[1735858986404,8.97407817,207.01,206.96,36.6094]
[1735858986608,8.97407817,207.0,206.96,36.6094]
[1735858986777,8.97407817,207.02,206.96,36.6094]
[1735858987104,8.97407817,207.04,206.99,30.0]
[1735858987269,8.97407817,207.05,206.99,30.0]
[1735858987871,8.97407817,207.07,206.99,171.87407817]
[1735858988097,8.97407817,207.08,207.0,8.97407817]
[1735858988403,8.97407817,207.07,207.0,8.97407817]
[1735858988691,8.97407817,207.08,207.03,30.0]
[1735858989205,8.97407817,207.09,207.03,30.0]
[1735858989393,8.97407817,207.09,207.03,162.9]
[1735858989802,8.97407817,207.06,207.03,132.9]
[1735858991300,8.97407817,207.05,207.01,1.6196]
[1735858991978,8.97407817,207.05,207.02,1.20920151]
[1735858993216,8.97407817,207.06,207.02,1.20920151]
[1735858993707,8.97407817,207.07,207.02,1.20920151]
[1735858994398,8.97407817,207.09,207.02,1.20920151]
[1735858994605,8.97407817,207.09,207.02,10.18327968]
[1735858994909,8.97407817,207.1,207.03,1.20920151]
[1735858995606,12.0644,207.22,207.1,30.0]
[1735858995906,8.97407817,207.18,207.1,171.87407817]
[1735858996207,1.5086,207.24,207.13,38.97407817]
[1735858996379,8.97407817,207.21,207.13,178.24787817]
[1735858997004,8.97407817,207.2,207.14,1.20920151]
[1735858997311,8.97407817,207.17,207.14,1.20920151]
[1735858997495,8.97407817,207.17,207.13,20.0]
[1735858997897,8.97407817,207.18,207.13,20.0]
[1735858998205,8.97407817,207.19,207.13,50.0]
[1735858998397,14.00127586,207.19,207.13,50.0]
[1735858999028,14.00127586,207.16,207.14,1.20851552]
[1735858999513,14.00127586,207.18,207.14,1.20851552]
[1735858999917,14.00127586,207.18,207.12,1.20851552]
[1735859000103,14.00127586,207.19,207.12,15.20979138]
[1735859000291,14.00127586,207.2,207.13,30.0]
[1735859000700,14.00127586,207.2,207.13,44.00127586]
[1735859000895,14.00127586,207.22,207.16,30.0]
[1735859001097,14.00127586,207.23,207.16,176.90127586]
[1735859001320,14.00127586,207.23,207.17,1.20830946]
[1735859001697,14.00127586,207.24,207.17,1.20830946]
[1735859002098,14.00127586,207.23,207.18,1.20830946]
[1735859002795,14.00127586,207.23,207.17,1.20830946]
[1735859003728,14.00127586,207.23,207.18,1.20830946]
[1735859004224,14.00127586,207.23,207.19,1.20830946]
[1735859005035,14.00127586,207.23,207.19,30.0]
[1735859005911,14.00127586,207.21,207.17,1.93323248]
[1735859006422,14.00127586,207.21,207.16,36.3437]
[1735859006633,12.0628,207.25,207.13,31.585]
[1735859006634,14.00127586,207.18,207.13,31.585]
[1735859006801,14.00127586,207.17,207.13,31.585]
[1735859007001,14.00127586,207.17,207.13,30.0]
[1735859007301,14.00127586,207.17,207.11,139.0336]
[1735859007624,14.00127586,207.16,207.11,6.1336]
[1735859008119,14.00127586,207.17,207.12,1.20856763]
[1735859008316,14.00127586,207.18,207.12,1.20856763]
[1735859008512,14.00127586,207.18,207.13,1.20856763]
[1735859009019,14.00127586,207.21,207.13,178.10984349]
[1735859009220,14.00127586,207.2,207.13,176.90127586]
[1735859009927,14.00127586,207.2,207.14,1.20856763]
[1735859011542,14.00127586,207.21,207.14,15.20984349]
[1735859012728,14.00127586,207.22,207.16,30.0]
[1735859012926,14.00127586,207.23,207.16,44.00127586]
[1735859013304,14.00127586,207.23,207.17,1.20856763]
[1735859013718,14.00127586,207.24,207.17,134.10856763]
[1735859014113,14.00127586,207.24,207.17,132.9]
[1735859014415,14.00127586,207.35,207.26,30.0]
[1735859014603,14.00127586,207.35,207.27,14.00127586]
[1735859014934,14.00127586,207.33,207.26,30.0]
[1735859015231,14.00127586,207.3,207.23,162.9]
[1735859015407,14.00127586,207.31,207.23,176.90127586]
[1735859015602,14.00127586,207.31,207.27,3.1405769]
[1735859016011,14.00127586,207.29,207.27,3.1405769]
[1735859016434,14.00127586,207.29,207.28,1.20791419]
[1735859017330,14.00127586,207.32,207.28,1.20791419]
[1735859017707,12.0584,207.33,207.28,1.20791419]
[1735859017708,14.00127586,207.33,207.28,1.20791419]
[1735859017909,14.00127586,207.34,207.29,1.20791419]
[1735859018101,14.00127586,207.35,207.29,1.20791419]
[1735859018300,14.00127586,207.36,207.29,1.20791419]
[1735859018502,14.00127586,207.31,207.29,1.20791419]
[1735859018708,14.00127586,207.3,207.25,1.47956984]
[1735859019526,14.00127586,207.3,207.26,3.14076953]
[1735859020034,14.00127586,207.3,207.27,1.20798828]
[1735859020414,14.00127586,207.29,207.27,1.20798828]
[1735859021034,44.027864,207.32,207.28,1.20798828]
[1735859021331,14.00127586,207.3,207.28,1.20798828]
[1735859021542,14.00127586,207.29,207.24,1.9329782]
[1735859021832,14.00127586,207.25,207.24,1.9329782]
[1735859022217,38.02913986,207.25,207.24,7.82e-05]
[1735859022436,0.12549,207.24,207.16,3.89628876]
[1735859022618,14.00127586,207.19,207.16,3.89628876]
[1735859022816,14.00127586,207.2,207.16,3.89628876]
[1735859023024,14.00127586,207.2,207.17,1.20848905]
[1735859023711,14.00127586,207.22,207.17,1.20848905]
[1735859023918,14.00127586,207.22,207.18,1.20848905]
[1735859024118,14.00127586,207.21,207.18,1.20848905]
[1735859024517,14.00127586,207.21,207.19,1.20848905]
[1735859024709,12.0626,207.26,207.19,1.20848905]
[1735859024915,14.00127586,207.25,207.19,1.20848905]
[1735859025413,14.00127586,207.25,207.2,1.20848905]
[1735859025938,14.00127586,207.24,207.21,1.20848905]
[1735859026723,14.00127586,207.24,207.18,30.0]
[1735859027537,14.00127586,207.24,207.19,1.20824999]
[1735859028240,14.00127586,207.24,207.2,1.20824999]
[1735859028842,14.00127586,207.28,207.21,1.20824999]
[1735859029340,14.00127586,207.28,207.22,1.20824999]
[1735859029519,14.00127586,207.24,207.22,1.20824999]
[1735859029931,14.00127586,207.24,207.23,1.20824999]
[1735859030932,14.00127586,207.24,207.19,132.9]
[1735859031140,14.00127586,207.22,207.19,132.9]
[1735859031514,14.00127586,207.22,207.2,1.20838344]
[1735859031719,14.00127586,207.24,207.2,1.20838344]
[1735859032630,14.00127586,207.24,207.21,3.14162739]
[1735859033541,14.00127586,207.24,207.22,3.14162739]
[1735859034053,14.00127586,207.24,207.23,1.20838344]
[1735859034848,14.00127586,207.26,207.23,3.14158719]
[1735859035360,14.00127586,207.26,207.24,1.20838344]
[1735859035556,13.6416,207.35,207.24,1.20838344]
[1735859035758,14.00127586,207.3,207.24,1.20838344]
[1735859036342,14.00127586,207.3,207.25,3.1414628]
[1735859036738,14.00127586,207.28,207.25,3.1414628]
[1735859037258,14.00127586,207.3,207.26,3.1414628]
[1735859037559,14.00127586,207.3,207.27,1.20838344]
[1735859038056,14.00127586,207.3,207.28,1.20838344]
[1735859038233,14.12676586,207.29,207.28,1.20838344]
[1735859038429,14.12676586,207.29,207.22,1.47956984]
[1735859038652,14.00127586,207.23,207.22,1.47956984]
[1735859038951,14.00127586,207.23,207.19,30.0]
[1735859039254,14.00127586,207.24,207.19,30.0]
[1735859039758,14.00127586,207.24,207.2,1.93316117]
[1735859040537,14.00127586,207.24,207.21,1.93316117]
[1735859040740,14.00127586,207.26,207.21,1.93316117]
[1735859041052,14.00127586,207.27,207.21,1.93316117]
[1735859041229,14.00127586,207.27,207.19,176.90127586]
[1735859041641,14.00127586,207.27,207.22,1.93310776]
[1735859042045,14.00127586,207.27,207.23,1.93310776]
[1735859042653,14.00127586,207.27,207.24,1.93310776]
[1735859043552,0.12549,207.29,207.25,1.93310776]
[1735859043850,24.027864,207.29,207.25,1.93310776]
[1735859044029,24.027864,207.29,207.19,132.9]
[1735859044558,14.00127586,207.25,207.18,6.0479]
[1735859044855,14.00127586,207.25,207.2,1.93314849]
[1735859045059,14.00127586,207.26,207.2,1.93314849]
[1735859045353,14.00127586,207.26,207.21,1.93314849]
[1735859045750,14.00127586,207.24,207.21,1.93314849]
[1735859045955,14.00127586,207.24,207.22,1.93314849]
[1735859046535,14.00127586,207.23,207.18,132.9]
[1735859046838,14.00127586,207.21,207.18,132.9]
[1735859047153,14.00127586,207.21,207.19,1.93320826]
[1735859048154,14.00127586,207.22,207.2,1.93320826]
[1735859048660,12.0574,207.34,207.2,15.93448412]
[1735859048832,14.00127586,207.28,207.21,1.93320826]
[1735859049253,14.00127586,207.28,207.22,1.93320826]
[1735859049455,14.00127586,207.26,207.19,162.9]
[1735859051354,14.00127586,207.25,207.19,162.9]
[1735859052142,14.00127586,207.25,207.2,3.14141958]
[1735859052343,14.00127586,207.22,207.21,3.14141958]
[1735859052851,14.00127586,207.23,207.21,3.14141958]
[1735859053464,14.00127586,207.23,207.22,3.14141958]
[1735859054763,14.00127586,207.23,207.22,1.2082383]
[1735859061644,14.00127586,207.26,207.22,1.2082383]
[1735859061842,14.00127586,207.28,207.22,1.2082383]
[1735859062256,14.00127586,207.28,207.23,3.14142245]
[1735859062664,14.00127586,207.28,207.24,3.14142245]
[1735859063374,14.00127586,207.27,207.25,1.2082383]
[1735859064072,14.00127586,207.28,207.25,1.2082383]
[1735859064266,14.00127586,207.29,207.26,1.2082383]
[1735859064675,14.00127586,207.29,207.27,1.2082383]
[1735859064974,14.00127586,207.3,207.27,1.2082383]
[1735859065142,14.00127586,207.3,207.28,1.2082383]
[1735859065745,24.027864,207.35,207.29,1.2082383]
[1735859065944,14.00127586,207.3,207.29,1.2082383]
[1735859066158,14.00127586,207.3,207.22,14.00127586]
[1735859066574,14.00127586,207.3,207.23,30.0]
[1735859067071,14.00127586,207.3,207.24,3.14073992]
[1735859067441,14.00127586,207.29,207.25,3.14073992]
[1735859068155,14.00127586,207.29,207.26,3.14073992]
[1735859068372,14.00127586,207.31,207.26,3.14073992]
[1735859068950,14.00127586,207.31,207.27,3.14073992]
[1735859069764,14.00127586,207.31,207.28,3.14073992]
[1735859070563,14.00127586,207.31,207.29,3.14073992]
[1735859071155,14.00127586,207.31,207.3,1.20797689]
[1735859072067,14.00127586,207.34,207.3,1.20797689]
[1735859072451,14.00127586,207.34,207.31,1.20797689]
[1735859073172,14.00127586,207.34,207.32,1.20797689]
[1735859073869,14.00127586,207.34,207.26,176.90127586]
[1735859074554,14.00127586,207.33,207.27,3.14026266]
[1735859075072,14.00127586,207.33,207.28,3.14026266]
[1735859075680,14.00127586,207.33,207.29,3.14026266]
[1735859076573,14.00127586,207.33,207.3,3.14026266]
[1735859076752,14.00127586,207.32,207.3,3.14026266]
[1735859076954,12.0552,207.38,207.31,1.20779333]
[1735859077154,14.00127586,207.32,207.31,1.20779333]
[1735859077762,14.00127586,207.33,207.31,1.20779333]
[1735859078261,8.95023182,207.32,207.31,1.20779333]
[1735859078673,8.95023182,207.32,207.29,30.0]
[1735859078854,8.95023182,207.33,207.29,30.0]
[1735859079276,8.95023182,207.33,207.26,171.85023182]
[1735859079480,8.95023182,207.32,207.3,3.14020686]
[1735859080177,8.95023182,207.32,207.31,1.20777187]
[1735859080357,8.95023182,207.33,207.31,1.20777187]
[1735859080960,8.95023182,207.33,207.26,162.9]
[1735859081581,8.95023182,207.33,207.26,171.85023182]
[1735859081779,8.95023182,207.33,207.27,3.14019621]
[1735859082481,8.95023182,207.33,207.28,3.14019621]
[1735859083082,8.95023182,207.33,207.29,3.14019621]
[1735859083474,8.95023182,207.32,207.29,3.14019621]
[1735859083672,8.95023182,207.32,207.3,1.20776777]
[1735859084278,8.95023182,207.32,207.31,1.20776777]
[1735859085785,12.057,207.35,207.31,1.20776777]
[1735859085956,12.0551,207.38,207.31,1.20776777]
[1735859086286,8.95023182,207.34,207.29,1.93246408]
[1735859087098,8.95023182,207.34,207.3,3.14020921]
[1735859087786,8.95023182,207.34,207.31,1.20774513]
[1735859088192,8.95023182,207.34,207.27,141.85023182]
[1735859088370,8.95023182,207.33,207.27,132.9]
[1735859088579,8.95023182,207.33,207.32,1.20770336]
[1735859090098,8.95023182,207.35,207.32,1.20770336]
[1735859090668,12.0551,207.38,207.32,1.20770336]
[1735859091059,12.0534,207.41,207.32,1.20770336]
[1735859091265,8.95023182,207.36,207.3,30.0]
[1735859091461,12.0534,207.41,207.28,6.4602]
[1735859091462,8.95023182,207.34,207.28,6.4602]
[1735859091689,24.027864,207.39,207.23,164.5209]
[1735859091995,44.027864,207.35,207.29,1.20782565]
[1735859092362,44.027864,207.35,207.23,31.6209]
[1735859092584,8.95023182,207.28,207.24,1.93269884]
[1735859092969,8.95023182,207.28,207.25,3.14068223]
[1735859093290,12.0586,207.33,207.25,3.14068223]
[1735859093291,8.95023182,207.27,207.25,3.14068223]
[1735859093496,8.95023182,207.28,207.25,3.14068223]
[1735859093665,8.95023182,207.29,207.23,1.93269884]
[1735859094392,8.95023182,207.29,207.24,3.14074175]
[1735859094988,8.95023182,207.29,207.25,3.14074175]
[1735859095473,1.5238,207.41,207.27,162.9]
[1735859095677,8.95023182,207.35,207.28,143.05827473]
[1735859095873,1.5238,207.41,207.3,30.0]
[1735859096075,1.5238,207.41,207.31,8.95023182]
[1735859096371,24.027864,207.38,207.32,1.20804291]
[1735859096893,8.95023182,207.33,207.32,1.20804291]
[1735859097093,8.95023182,207.33,207.27,1.93249471]
[1735859097280,8.95023182,207.32,207.27,1.93249471]
[1735859097469,8.95023182,207.33,207.27,31.93249471]
[1735859097795,8.95023182,207.33,207.28,3.14034488]
[1735859098095,8.95023182,207.34,207.28,3.14034488]
[1735859098387,8.95023182,207.34,207.29,1.20785017]
[1735859098988,8.95023182,207.32,207.3,1.20785017]
[1735859099597,8.95023182,207.32,207.27,1.93259915]
[1735859099792,8.95023182,207.33,207.27,1.93259915]
[1735859100166,8.95023182,207.35,207.29,30.0]
[1735859100380,13.98159932,207.35,207.29,30.0]
[1735859100696,13.98159932,207.34,207.29,30.0]
[1735859101100,12.0551,207.39,207.29,43.98159932]
[1735859101278,13.98159932,207.35,207.3,9.55626695]
[1735859101476,13.98159932,207.31,207.3,3.14046695]
[1735859102072,13.98159932,207.31,207.3,1.2078678]
[1735859102271,13.98159932,207.32,207.3,1.2078678]
[1735859102691,13.98159932,207.31,207.3,1.2078678]
[1735859102897,13.98159932,207.31,207.29,132.9]
[1735859103396,13.98159932,207.36,207.3,1.20785452]
[1735859103693,13.98159932,207.35,207.3,1.20785452]
[1735859104296,13.98159932,207.35,207.31,1.20785452]
[1735859104504,13.98159932,207.34,207.31,1.20785452]
[1735859104791,24.027864,207.38,207.32,1.20785452]
[1735859105798,12.0557,207.37,207.25,6.4158]
[1735859105980,13.98159932,207.31,207.25,6.4158]
[1735859106406,13.98159932,207.28,207.2,183.40919932]
[1735859106703,13.98159932,207.27,207.26,3.14081896]
[1735859107000,13.98159932,207.28,207.26,3.14081896]
[1735859107186,13.98159932,207.29,207.26,3.14081896]
[1735859107389,13.98159932,207.29,207.27,1.20800729]
[1735859108102,13.98159932,207.29,207.28,1.20800729]
[1735859109499,13.7079,207.33,207.28,1.20800729]
[1735859109500,13.98159932,207.3,207.28,1.20800729]
[1735859109796,13.98159932,207.3,207.28,3.14073181]
[1735859110113,13.98159932,207.29,207.28,3.14073181]
[1735859110315,13.98159932,207.29,207.2,6.5276]
[1735859110477,13.98159932,207.25,207.2,6.5276]
[1735859111000,13.98159932,207.25,207.21,3.14099605]
[1735859111608,13.98159932,207.25,207.22,3.14099605]
[1735859111788,13.98159932,207.23,207.22,3.14099605]
[1735859112506,13.98159932,207.24,207.22,3.14099605]
[1735859112890,13.98159932,207.25,207.22,3.14099605]
[1735859113091,13.98159932,207.24,207.23,1.2080754]
[1735859114794,14.23257932,207.24,207.18,1.9332336]
[1735859114976,13.98159932,207.19,207.18,1.9332336]
[1735859115395,13.98159932,207.19,207.18,1.20848365]
[1735859115984,13.98159932,207.19,207.1,36.1579]
[1735859116306,13.98159932,207.14,207.1,6.1579]
[1735859116623,13.98159932,207.12,207.06,134.5396]
[1735859116816,13.98159932,207.15,207.11,1.20858555]
[1735859117594,13.98159932,207.15,207.12,1.20858555]
[1735859117990,13.98159932,207.13,207.12,1.20858555]
[1735859118196,13.98159932,207.13,207.04,43.98159932]
[1735859118402,13.98159932,207.11,207.04,43.98159932]
[1735859118785,13.98159932,207.11,207.05,1.20887677]
[1735859119315,13.98159932,207.11,207.06,1.20887677]
[1735859119886,13.98159932,207.11,207.07,1.20887677]
[1735859120382,13.98159932,207.09,207.07,1.20887677]
[1735859120586,24.027864,207.15,207.07,1.20887677]
[1735859120587,13.98159932,207.08,207.07,1.20887677]
[1735859120806,13.98159932,207.08,207.01,162.9]
[1735859120807,13.98159932,207.08,207.03,1.20887677]
[1735859120994,13.98159932,207.06,207.03,1.20887677]
[1735859121396,13.98159932,207.06,207.02,1.20887677]
[1735859121615,13.98159932,207.05,207.02,1.20887677]
[1735859122108,13.98159932,207.07,207.0,15.19047609]
[1735859122607,13.98159932,207.07,207.01,1.20887677]
[1735859123112,13.98159932,207.07,207.0,13.98159932]
[1735859123315,13.98159932,207.06,206.99,15.19047609]
[1735859123689,13.98159932,207.04,206.99,134.10887677]
[1735859123893,13.98159932,207.03,206.99,1.20887677]
[1735859124142,13.98159932,207.06,206.99,15.19047609]
[1735859124416,13.98159932,207.09,207.02,43.98159932]
[1735859124616,13.98159932,207.12,207.04,13.98159932]
[1735859125895,13.98159932,207.13,207.06,13.98159932]
[1735859126086,13.98159932,207.11,207.04,13.98159932]
[1735859127017,13.98159932,207.11,207.03,15.19047609]
[1735859127307,13.98159932,207.07,207.03,1.20887677]
[1735859127690,13.98159932,207.08,207.03,1.20887677]
[1735859127890,13.98159932,207.08,207.01,13.98159932]
[1735859128813,13.98159932,207.08,207.01,15.19047609]
[1735859129319,13.98159932,207.08,207.01,13.98159932]
[1735859130119,13.98159932,207.07,207.0,148.09047609]
[1735859130706,13.98159932,207.07,207.01,1.20887677]
[1735859131294,13.98159932,207.06,207.01,1.20887677]
[1735859131714,13.98159932,207.05,207.01,1.20887677]
[1735859132518,13.98159932,207.05,207.0,1.20887677]
[1735859133517,13.98159932,207.02,207.0,1.20887677]
[1735859133721,13.98159932,207.03,207.0,1.20887677]
[1735859133897,13.98159932,207.04,206.98,6.2054]
[1735859134828,13.98159932,207.04,206.98,7.41427677]
[1735859134997,13.98159932,207.03,206.98,7.41427677]
[1735859135317,13.98159932,207.01,206.97,1.20887677]
[1735859135529,13.98159932,206.99,206.97,1.20887677]
[1735859135911,13.98159932,207.0,206.97,1.20887677]
[1735859136104,13.98159932,207.0,206.94,1.20887677]
[1735859138718,13.98159932,206.98,206.94,1.20887677]
[1735859138926,12.0752,207.04,206.94,1.20887677]
[1735859138927,13.98159932,206.96,206.94,1.20887677]
[1735859139222,13.98159932,206.95,206.94,1.20887677]
[1735859139633,13.98159932,206.95,206.89,30.0]
[1735859139809,13.98159932,206.94,206.89,30.0]
[1735859140010,13.98159932,206.94,206.9,1.20981616]
[1735859140205,13.98159932,206.97,206.9,15.19141548]
[1735859140611,13.98159932,206.97,206.9,13.98159932]
[1735859141424,13.98159932,206.96,206.89,43.98159932]
[1735859146328,8.98147111,206.96,206.89,38.98147111]
[1735859148332,8.98147111,206.96,206.9,1.20988008]
[1735859149734,8.98147111,206.97,206.9,10.19135119]
[1735859150110,8.98147111,206.96,206.9,1.20988008]
[1735859151147,8.98147111,206.97,206.9,10.19135119]
[1735859151307,8.98147111,206.99,206.91,8.98147111]
[1735859151619,8.98147111,206.98,206.91,8.98147111]
[1735859151819,8.98147111,206.98,206.91,10.19135119]
[1735859152635,8.98147111,206.97,206.92,1.20988008]
[1735859153029,8.98147111,206.97,206.91,1.20988008]
[1735859153815,8.98147111,206.99,206.92,10.19135119]
[1735859154142,8.98147111,207.02,206.94,8.98147111]
[1735859154938,8.98147111,207.02,206.95,1.20988008]
[1735859155141,8.98147111,207.01,206.95,1.20988008]
[1735859155439,8.98147111,207.01,206.95,20.0]
[1735859155737,8.98147111,207.01,206.94,8.98147111]
[1735859156318,8.98147111,207.02,206.95,8.98147111]
[1735859156538,8.98147111,207.02,206.95,10.19121229]
[1735859157134,8.98147111,207.02,206.96,1.20974118]
[1735859158240,8.98147111,207.02,206.94,8.98147111]
[1735859158819,8.98147111,207.01,206.94,8.98147111]
[1735859159015,8.98147111,206.99,206.95,1.20973108]
[1735859159814,8.98147111,206.99,206.96,1.20973108]
[1735859160014,8.98147111,207.0,206.96,1.20973108]
[1735859160437,8.98147111,207.01,206.97,1.20973108]
[1735859160744,12.0737,207.06,206.97,1.20973108]
[1735859160926,8.98147111,207.06,206.98,8.98147111]
[1735859161244,8.98147111,207.05,206.98,10.19120219]
[1735859161426,8.98147111,207.01,206.98,1.20973108]
[1735859161624,8.98147111,207.01,206.99,1.20973108]
[1735859162044,8.98147111,207.01,206.95,7.6185]
[1735859162727,8.98147111,207.0,206.96,1.20965106]
[1735859162927,8.98147111,207.01,206.96,1.20965106]
[1735859163542,8.98147111,206.99,206.97,1.20965106]
[1735859163837,8.98147111,206.98,206.97,1.20965106]
[1735859165328,8.98147111,206.99,206.97,1.20965106]
[1735859165527,13.7277,207.04,206.97,1.20965106]
[1735859165528,8.98147111,207.0,206.97,1.20965106]
[1735859165923,8.98147111,207.0,206.93,8.98147111]
[1735859166554,8.98147111,207.0,206.94,1.20971745]
[1735859167032,8.98147111,207.0,206.95,1.20971745]
[1735859167848,8.98147111,207.0,206.96,1.20971745]
[1735859168646,8.98147111,207.0,206.97,1.20971745]
[1735859168824,13.7277,207.04,206.97,1.20971745]
[1735859169026,8.98147111,207.02,206.97,1.20971745]
[1735859169349,8.98147111,207.02,206.95,8.98147111]
[1735859170052,8.98147111,207.02,206.96,1.20973652]
[1735859170426,8.98147111,207.03,206.96,10.19120763]
[1735859170639,8.98147111,207.03,206.96,8.98147111]
[1735859171357,8.98147111,207.03,206.97,1.20957206]
[1735859171665,8.98147111,207.02,206.97,1.20957206]
[1735859171957,8.98147111,207.02,206.98,1.20957206]
[1735859172444,8.98147111,206.99,206.98,1.20957206]
[1735859172648,8.98147111,206.99,206.94,137.9]
[1735859172851,8.98147111,206.98,206.91,38.98147111]
[1735859173052,8.98147111,206.99,206.92,8.98147111]
[1735859173356,8.98147111,206.99,206.92,10.1911999]
[1735859173927,8.98147111,207.0,206.93,8.98147111]
[1735859174129,12.0732,207.07,206.95,8.98147111]
[1735859174450,8.98147111,207.03,206.96,8.98147111]
[1735859174645,8.98147111,207.02,206.95,8.98147111]
[1735859175039,8.98147111,207.02,206.97,1.20972879]